bitfinex-derivatives/quotes_BTCF0:USTF0_20250426
["timestamp","ask_amount","ask_price","bid_price","bid_amount"]
[1745625602478,0.57969921,94698.0,94697.0,0.45707769]
[1745625602978,0.5269058,94698.0,94697.0,0.45707769]
[1745625603281,0.48211239,94698.0,94697.0,0.45707769]
[1745625603478,0.42931898,94698.0,94697.0,0.45707769]
[1745625603680,0.44731898,94698.0,94697.0,0.45707769]
[1745625603879,0.395555,94698.0,94697.0,0.45707769]
[1745625604087,0.34379801,94698.0,94697.0,0.45707769]
[1745625604478,0.5292,94698.0,94697.0,0.45707769]
[1745625604671,0.47640659,94698.0,94697.0,0.45707769]
[1745625604881,0.38287199,94698.0,94697.0,0.45707769]
[1745625605088,0.27590659,94698.0,94697.0,0.45707769]
[1745625605581,0.19705318,94698.0,94697.0,0.45707769]
[1745625605980,0.07436172,94698.0,94697.0,0.81787769]
[1745625606180,0.296,94698.0,94697.0,0.81787769]
[1745625606396,0.24320659,94698.0,94697.0,0.81787769]
[1745625606578,0.14561977,94698.0,94697.0,0.81787769]
[1745625606884,0.32170614,94698.0,94697.0,1.02894659]
[1745625607084,0.29217364,94698.0,94697.0,1.02894659]
[1745625607274,0.21269397,94698.0,94697.0,1.02894659]
[1745625607678,0.15049056,94698.0,94697.0,1.02894659]
[1745625607890,0.336,94698.0,94697.0,1.02894659]
[1745625608077,0.2409562,94698.0,94697.0,1.02994659]
[1745625608274,0.23084512,94698.0,94697.0,1.09706659]
[1745625608479,0.12525864,94698.0,94697.0,1.09706659]
[1745625608676,0.0724654,94698.0,94697.0,1.09706659]
[1745625608979,0.28491556,94698.0,94697.0,1.09706659]
[1745625609280,0.17610154,94698.0,94697.0,1.09706659]
[1745625609481,0.1233083,94698.0,94697.0,1.09706659]
[1745625609675,0.11332372,94698.0,94697.0,1.09706659]
[1745625609882,0.1366,94712.0,94707.0,0.2110455]
[1745625610080,0.40380676,94712.0,94708.0,0.212]
[1745625610288,0.36468859,94712.0,94709.0,0.2110413]
[1745625610480,0.31189535,94712.0,94709.0,0.4510413]
[1745625610677,0.31189535,94712.0,94710.0,0.1394]
[1745625610881,0.26110211,94712.0,94710.0,0.3794]
[1745625611080,0.01920676,94711.0,94710.0,0.5474]
[1745625611281,0.32920676,94711.0,94710.0,0.5474]
[1745625611481,0.25613972,94711.0,94710.0,0.5474]
[1745625611683,0.17855972,94711.0,94710.0,0.5474]
[1745625612087,0.12576648,94711.0,94710.0,0.5474]
[1745625612376,0.293,94711.0,94710.0,0.5474]
[1745625612575,0.24020676,94711.0,94710.0,0.5474]
[1745625612993,0.17170631,94711.0,94710.0,0.5474]
[1745625613286,0.34,94711.0,94710.0,0.4765]
[1745625613488,0.36270676,94711.0,94710.0,0.4765]
[1745625613687,0.30991352,94711.0,94710.0,0.4765]
[1745625614093,0.25712028,94711.0,94710.0,0.4765]
[1745625614283,0.25612028,94711.0,94710.0,0.4795]
[1745625614486,0.1525338,94711.0,94710.0,0.4795]
[1745625614686,0.36370676,94711.0,94710.0,0.4795]
[1745625614886,0.31091352,94711.0,94710.0,0.4795]
[1745625615090,0.20633156,94711.0,94710.0,0.4795]
[1745625615287,0.15354284,94711.0,94710.0,0.4795]
[1745625615493,0.0916482,94711.0,94710.0,0.4795]
[1745625615691,0.0729,94711.0,94710.0,0.4795]
[1745625615894,0.31011128,94711.0,94710.0,0.4795]
[1745625616189,0.22732256,94711.0,94710.0,0.4765]
[1745625616391,0.17453384,94711.0,94710.0,0.168]
[1745625616785,1.26907554,94711.0,94710.0,0.168]
[1745625617291,0.0527607,94709.0,94697.0,0.01307769]
[1745625617496,0.3608,94698.0,94697.0,0.01307769]
[1745625617789,0.6808,94698.0,94697.0,0.01307769]
[1745625618297,0.6808,94698.0,94697.0,0.18107769]
[1745625618785,0.6808,94698.0,94697.0,0.18207769]
[1745625619091,0.6808,94698.0,94697.0,0.19207769]
[1745625619489,0.6608,94698.0,94697.0,0.18207769]
[1745625619996,0.65555247,94698.0,94697.0,0.18207769]
[1745625620183,0.65555247,94698.0,94697.0,0.19207769]
[1745625620384,0.65555247,94698.0,94697.0,0.19707769]
[1745625621096,0.54997503,94698.0,94697.0,0.19707769]
[1745625621288,0.49499012,94698.0,94697.0,0.19707769]
[1745625621489,0.3,94698.0,94697.0,0.19707769]
[1745625621695,0.19442256,94698.0,94697.0,0.19707769]
[1745625621891,0.14163384,94698.0,94697.0,0.19707769]
[1745625622187,0.27115488,94698.0,94697.0,0.19707769]
[1745625622389,0.21836616,94698.0,94697.0,0.19707769]
[1745625622589,0.16556521,94698.0,94697.0,0.19707769]
[1745625622785,0.14164607,94698.0,94697.0,0.19707769]
[1745625622987,0.35821812,94698.0,94697.0,0.19707769]
[1745625623197,0.30541717,94698.0,94697.0,0.19707769]
[1745625623397,0.25261622,94698.0,94697.0,0.19707769]
[1745625623599,0.19981527,94698.0,94697.0,0.19707769]
[1745625623801,0.10560191,94698.0,94697.0,0.19707769]
[1745625623990,0.26719905,94698.0,94697.0,0.19707769]
[1745625624298,0.26719905,94698.0,94697.0,0.34417769]
[1745625624299,0.2143981,94698.0,94697.0,0.34417769]
[1745625624487,0.1087962,94698.0,94697.0,0.34417769]
[1745625624692,0.05599525,94698.0,94697.0,0.34417769]
[1745625624998,0.3,94698.0,94697.0,0.34417769]
[1745625625199,0.24719905,94698.0,94697.0,0.34417769]
[1745625625390,0.1943981,94698.0,94697.0,0.34417769]
[1745625625591,0.14159715,94698.0,94697.0,0.34417769]
[1745625625901,0.27400475,94698.0,94697.0,0.34417769]
[1745625626098,0.2212038,94698.0,94697.0,0.34417769]
[1745625626291,0.16840285,94698.0,94697.0,0.34417769]
[1745625626490,0.14159715,94698.0,94697.0,0.34417769]
[1745625626692,0.34,94698.0,94697.0,0.34417769]
[1745625626890,0.30400475,94698.0,94697.0,0.34417769]
[1745625627097,0.2512038,94698.0,94697.0,0.34417769]
[1745625627298,0.19840285,94698.0,94697.0,0.34417769]
[1745625627496,0.1056019,94698.0,94697.0,0.34417769]
[1745625627698,0.32,94698.0,94697.0,0.34417769]
[1745625627889,0.26719905,94698.0,94697.0,0.34417769]
[1745625628095,0.16159715,94698.0,94697.0,0.34417769]
[1745625628288,0.1087962,94698.0,94697.0,0.34417769]
[1745625628492,0.1483,94711.0,94697.0,0.34417769]
[1745625628493,0.3608,94709.0,94697.0,0.34417769]
[1745625628702,0.1438,94708.0,94697.0,0.34417769]
[1745625628998,0.4638,94708.0,94697.0,0.34417769]
[1745625629600,0.4638,94708.0,94697.0,0.33917769]
[1745625630399,0.4648,94708.0,94697.0,0.33817769]
[1745625630593,0.4668,94708.0,94697.0,0.33817769]
[1745625632301,0.3981,94708.0,94699.0,0.3608]
[1745625632499,0.323,94708.0,94700.0,0.1388]
[1745625632697,0.323,94708.0,94700.0,0.3688]
[1745625632891,0.323,94708.0,94701.0,0.0709]
[1745625633093,0.323,94708.0,94701.0,0.4989]
[1745625633295,0.321,94708.0,94701.0,0.4989]
[1745625633503,0.322,94708.0,94701.0,0.4989]
[1745625633802,0.0737,94707.0,94701.0,0.428]
[1745625634007,0.3608,94706.0,94701.0,0.428]
[1745625634301,0.6908,94706.0,94701.0,0.428]
[1745625634501,0.0719,94705.0,94702.0,0.1411]
[1745625634800,0.0719,94705.0,94702.0,0.2111]
[1745625634801,0.4019,94705.0,94702.0,0.2111]
[1745625634998,0.32044903,94705.0,94702.0,0.2111]
[1745625635302,0.32044903,94705.0,94702.0,0.3791]
[1745625636202,0.39234903,94705.0,94702.0,0.3791]
[1745625636503,0.39334903,94705.0,94702.0,0.3791]
[1745625637096,0.32144903,94705.0,94702.0,0.3791]
[1745625641706,0.26865989,94705.0,94702.0,0.3791]
[1745625642099,0.08787276,94705.0,94702.0,0.3791]
[1745625642300,0.03508362,94705.0,94702.0,0.3791]
[1745625642501,0.261,94705.0,94702.0,0.3791]
[1745625642703,0.20821086,94705.0,94702.0,0.3791]
[1745625643103,0.15542172,94705.0,94702.0,0.3791]
[1745625643309,0.10263258,94705.0,94702.0,0.3791]
[1745625643609,0.28821086,94705.0,94702.0,0.3791]
[1745625643909,0.23542172,94705.0,94702.0,0.3791]
[1745625644207,0.18263258,94705.0,94702.0,0.3791]
[1745625644409,0.12984344,94705.0,94702.0,0.3791]
[1745625644601,0.10557828,94705.0,94702.0,0.3791]
[1745625644803,0.341,94705.0,94702.0,0.3791]
[1745625645003,0.28721388,94705.0,94702.0,0.3791]
[1745625645204,0.23442776,94705.0,94702.0,0.3791]
[1745625645415,0.18164164,94705.0,94702.0,0.3791]
[1745625645605,0.12885552,94705.0,94702.0,0.3791]
[1745625645813,0.0760694,94705.0,94702.0,0.3791]
[1745625646014,0.37,94705.0,94702.0,0.3791]
[1745625646218,0.37,94705.0,94702.0,0.3091]
[1745625646416,0.0709,94704.0,94702.0,0.3091]
[1745625646715,0.3909,94704.0,94702.0,0.3091]
[1745625646908,0.4593,94704.0,94702.0,0.3091]
[1745625648013,0.4603,94704.0,94702.0,0.3091]
[1745625649518,0.4613,94704.0,94702.0,0.3091]
[1745625655107,0.4613,94704.0,94702.0,0.237]
[1745625655311,0.0716,94703.0,94702.0,0.237]
[1745625655513,0.3816,94703.0,94702.0,0.237]
[1745625655708,0.4559,94703.0,94702.0,0.237]
[1745625658403,0.1459,94703.0,94702.0,0.237]
[1745625661112,0.0743,94703.0,94702.0,0.237]
[1745625661415,0.0743,94703.0,94702.0,0.4480578]
[1745625661615,0.1492,94710.0,94709.0,0.2110422]
[1745625662017,0.4163,94711.0,94710.0,0.21104]
[1745625662217,0.7771,94712.0,94711.0,0.2110377]
[1745625662721,0.7771,94712.0,94711.0,0.4910377]
[1745625663117,0.7771,94712.0,94711.0,0.6590377]
[1745625663319,0.7771,94712.0,94711.0,0.7312377]
[1745625663911,0.7791,94712.0,94711.0,0.7312377]
[1745625664520,0.7811,94712.0,94711.0,0.7312377]
[1745625665325,0.7791,94712.0,94711.0,0.7312377]
[1745625665626,0.4203,94712.0,94711.0,0.7312377]
[1745625665827,0.4203,94712.0,94711.0,0.5202]
[1745625666715,0.4183,94712.0,94711.0,0.5202]
[1745625666912,0.4203,94712.0,94711.0,0.5202]
[1745625667529,0.4183,94712.0,94711.0,0.5202]
[1745625667719,0.4203,94712.0,94711.0,0.5202]
[1745625668029,0.004,94712.0,94711.0,0.5202]
[1745625668322,0.002,94712.0,94711.0,0.5202]
[1745625668719,0.004,94712.0,94711.0,0.5202]
[1745625671220,0.004,94712.0,94711.0,0.5909]
[1745625671416,0.004,94712.0,94711.0,0.8019377]
[1745625671623,0.4163,94722.0,94711.0,1.004459]
[1745625671930,0.4163,94722.0,94713.0,0.2110329]
[1745625672229,0.4163,94722.0,94714.0,0.2116]
[1745625672425,0.4891,94722.0,94714.0,0.4616]
[1745625673224,0.4891,94722.0,94714.0,0.6296]
[1745625673419,0.4921,94722.0,94714.0,0.6296]
[1745625673724,0.4951,94722.0,94714.0,0.6296]
[1745625673927,0.0788,94722.0,94714.0,0.6296]
[1745625674723,0.0788,94722.0,94714.0,0.8406301]
[1745625675119,0.0778,94722.0,94714.0,0.8406301]
[1745625675324,0.0748,94722.0,94714.0,0.8406301]
[1745625675519,0.0768,94722.0,94715.0,0.2110273]
[1745625675825,0.0768,94722.0,94716.0,0.2110263]
[1745625676030,0.0768,94722.0,94716.0,0.24]
[1745625676226,0.0768,94722.0,94717.0,0.1441]
[1745625676428,0.0768,94722.0,94717.0,0.3841]
[1745625676622,0.0748,94722.0,94717.0,0.3841]
[1745625676822,0.2150151,94722.0,94717.0,0.3841]
[1745625677018,0.2110156,94721.0,94717.0,0.3841]
[1745625677220,0.2110156,94721.0,94717.0,0.5521]
[1745625678223,0.2130156,94721.0,94717.0,0.5521]
[1745625678818,0.2110186,94720.0,94717.0,0.5521]
[1745625679219,0.2110212,94719.0,94717.0,0.5521]
[1745625679425,0.2856212,94719.0,94717.0,0.5521]
[1745625680920,0.2866212,94719.0,94717.0,0.5521]
[1745625681230,0.001,94719.0,94717.0,0.5521]
[1745625681530,0.21302,94719.0,94717.0,0.5521]
[1745625682028,0.001,94719.0,94717.0,0.5521]
[1745625682228,0.002,94719.0,94717.0,0.5521]
[1745625682635,0.003,94719.0,94717.0,0.5521]
[1745625682829,0.003,94719.0,94717.0,0.7631235]
[1745625683428,0.002,94719.0,94717.0,0.7631235]
[1745625683832,0.002,94719.0,94717.0,0.5521]
[1745625684030,0.3488,94725.0,94722.0,0.2110126]
[1745625684332,0.3488,94725.0,94724.0,0.2110088]
[1745625684532,0.2811,94725.0,94724.0,0.4810088]
[1745625684732,0.0527464,94735.0,94724.0,0.7005085]
[1745625684932,0.0527464,94735.0,94725.0,0.3608]
[1745625685128,0.2110043,94726.0,94725.0,0.7988]
[1745625685325,0.0527474,94733.0,94725.0,0.9489]
[1745625685530,0.2110043,94726.0,94725.0,0.9489]
[1745625686023,0.0709,94727.0,94725.0,0.9489]
[1745625686623,0.001,94726.0,94725.0,0.9489]
[1745625688131,0.2839023,94727.0,94725.0,0.9489]
[1745625688339,0.0729,94727.0,94725.0,0.9489]
[1745625688927,0.001,94726.0,94725.0,0.9489]
[1745625689731,0.0719,94727.0,94725.0,0.9489]
[1745625690529,0.001,94726.0,94725.0,0.5881]
[1745625690735,0.001,94726.0,94725.0,0.9489]
[1745625691032,0.001,94726.0,94725.0,1.1599065]
[1745625691439,0.002,94726.0,94725.0,0.9489]
[1745625691934,0.001,94726.0,94725.0,1.1599065]
[1745625692432,0.001,94727.0,94726.0,0.2110043]
[1745625692636,0.001,94727.0,94726.0,0.4610043]
[1745625692836,0.06636,94746.0,94726.0,0.3932]
[1745625693031,0.2109681,94743.0,94726.0,0.3932]
[1745625693340,0.2109687,94742.0,94736.0,0.2109803]
[1745625693639,0.2109687,94742.0,94737.0,0.2149]
[1745625693640,0.2109742,94740.0,94737.0,0.2149]
[1745625693831,0.2109742,94740.0,94737.0,0.4949]
[1745625694134,0.2109742,94740.0,94737.0,0.6629]
[1745625694341,0.0736,94746.0,94737.0,0.6629]
[1745625694642,0.2109734,94740.0,94737.0,0.6629]
[1745625695141,0.2119734,94740.0,94737.0,0.6629]
[1745625695931,0.2109776,94738.0,94737.0,0.5912]
[1745625696534,0.2846776,94738.0,94737.0,0.5912]
[1745625698034,0.0737,94738.0,94737.0,0.5912]
[1745625698236,0.0757,94738.0,94737.0,0.5912]
[1745625698436,0.002,94738.0,94737.0,0.5912]
[1745625698940,0.001,94738.0,94737.0,0.5912]
[1745625699334,0.002,94738.0,94737.0,0.5912]
[1745625699640,0.2129776,94738.0,94737.0,0.5912]
[1745625700233,0.002,94738.0,94737.0,0.8021798]
[1745625700442,0.2617,94751.0,94747.0,0.0527393]
[1745625700630,0.0052,94758.0,94749.0,0.4135382]
[1745625700835,0.2161341,94758.0,94752.0,0.0527365]
[1745625701035,0.2109357,94757.0,94753.0,0.3590434]
[1745625701332,0.2109357,94757.0,94753.0,0.3981]
[1745625702030,0.2129357,94757.0,94753.0,0.3981]
[1745625702234,0.2149357,94757.0,94753.0,0.5661]
[1745625703133,0.2149357,94757.0,94753.0,0.3981]
[1745625703741,0.2149357,94757.0,94753.0,0.40590783]
[1745625704946,0.2139357,94757.0,94753.0,0.40590783]
[1745625706234,0.210942,94754.0,94753.0,0.40590783]
[1745625707938,0.211942,94754.0,94753.0,0.40590783]
[1745625708138,0.212942,94754.0,94753.0,0.57390783]
[1745625710637,0.282142,94754.0,94753.0,0.57390783]
[1745625711235,0.282142,94754.0,94753.0,0.25780783]
[1745625711236,0.387678,94754.0,94753.0,0.25780783]
[1745625713346,0.3608,94776.0,94754.0,0.0527354]
[1745625713547,0.0527258,94772.0,94763.0,0.3608]
[1745625713847,0.210905,94771.0,94764.0,0.2183]
[1745625714145,0.0527249,94773.0,94764.0,0.50798474]
[1745625714351,0.0527249,94773.0,94765.0,0.00968474]
[1745625714540,0.210907,94770.0,94765.0,0.23968474]
[1745625714746,0.3668,94776.0,94766.0,0.15318474]
[1745625714942,0.210913,94767.0,94766.0,0.39318474]
[1745625715247,0.210913,94767.0,94766.0,0.3835]
[1745625715442,0.210913,94767.0,94766.0,0.39318474]
[1745625717646,0.574713,94767.0,94766.0,0.3151]
[1745625717844,0.716513,94767.0,94766.0,0.3151]
[1745625718051,0.355713,94767.0,94766.0,0.3151]
[1745625718346,0.523713,94767.0,94766.0,0.3151]
[1745625720238,0.355713,94767.0,94766.0,0.3151]
[1745625721248,0.523713,94767.0,94766.0,0.3151]
[1745625722139,0.355713,94767.0,94766.0,0.3151]
[1745625722741,0.355713,94767.0,94766.0,0.24]
[1745625722947,0.003,94767.0,94766.0,0.46060004]
[1745625723141,0.003,94767.0,94766.0,0.41768474]
[1745625723550,0.213913,94767.0,94766.0,0.55978474]
[1745625723749,0.003,94767.0,94766.0,0.55978474]
[1745625724150,0.003,94767.0,94766.0,0.39178474]
[1745625725645,0.003,94767.0,94766.0,0.75258474]
[1745625726052,0.213913,94767.0,94766.0,0.75258474]
[1745625726245,0.213913,94767.0,94766.0,0.39178474]
[1745625726446,0.213913,94767.0,94766.0,0.3821]
[1745625726653,0.213913,94767.0,94766.0,0.3115]
[1745625726954,0.285913,94767.0,94766.0,0.3115]
[1745625727159,0.356513,94767.0,94766.0,0.3115]
[1745625728050,0.524513,94767.0,94766.0,0.3115]
[1745625729554,0.524513,94767.0,94766.0,0.24]
[1745625730361,0.356513,94767.0,94766.0,0.24]
[1745625732353,0.0013,94781.0,94766.0,0.66321314]
[1745625732549,0.2108908,94777.0,94776.0,0.3608]
[1745625732756,0.2108908,94777.0,94776.0,0.6508]
[1745625734762,0.2128908,94777.0,94776.0,0.6508]
[1745625735664,0.2128908,94777.0,94776.0,0.29]
[1745625735966,0.2138908,94777.0,94776.0,0.29]
[1745625743863,0.2138908,94777.0,94776.0,0.3633]
[1745625749073,0.2138908,94777.0,94776.0,0.4458]
[1745625749267,0.3890908,94777.0,94776.0,0.4458]
[1745625749571,0.3890908,94777.0,94776.0,0.45548474]
[1745625751576,0.2138908,94777.0,94776.0,0.45548474]
[1745625752275,0.2138908,94777.0,94776.0,0.62348474]
[1745625753273,0.003,94777.0,94776.0,0.62348474]
[1745625753777,0.2138908,94777.0,94776.0,0.62348474]
[1745625753979,0.003,94777.0,94776.0,0.62348474]
[1745625754774,0.2138908,94777.0,94776.0,0.62348474]
[1745625755869,0.003,94777.0,94776.0,0.62348474]
[1745625760669,0.003,94777.0,94776.0,0.83437774]
[1745625761074,0.003,94777.0,94776.0,0.62348474]
[1745625762379,0.003,94777.0,94776.0,0.83437774]
[1745625762777,1e-08,94781.0,94780.0,0.2108841]
[1745625762981,1e-08,94781.0,94780.0,0.85136884]
[1745625763185,1e-08,94781.0,94780.0,1.01936884]
[1745625763489,1e-08,94781.0,94780.0,1.18866884]
[1745625764681,0.09551527,94800.0,94791.0,0.2108596]
[1745625764890,0.30635497,94800.0,94798.0,0.3608]
[1745625765092,0.30635497,94800.0,94799.0,0.1698]
[1745625765287,0.09551527,94800.0,94799.0,0.4398]
[1745625766294,0.09456735,94800.0,94799.0,0.6078]
[1745625772796,0.30540695,94800.0,94799.0,0.438]
[1745625773100,0.30540695,94800.0,94799.0,0.27]
[1745625773697,0.38330695,94800.0,94799.0,0.27]
[1745625774994,0.38330695,94800.0,94799.0,0.3592]
[1745625780699,0.38330695,94800.0,94799.0,0.27]
[1745625784305,0.55850695,94800.0,94799.0,0.27]
[1745625792309,0.30540695,94800.0,94799.0,0.27]
[1745625792508,0.09456735,94800.0,94799.0,0.27]
[1745625792711,0.30540695,94800.0,94799.0,0.27]
[1745625793106,0.30540695,94800.0,94799.0,0.438]
[1745625796118,0.30013035,94800.0,94799.0,0.438]
[1745625796619,0.08929075,94800.0,94799.0,0.6488418]
[1745625797816,0.08929075,94800.0,94799.0,0.438]
[1745625798014,0.08929075,94800.0,94799.0,0.6488418]
[1745625801607,0.08727543,94819.0,94799.0,0.438]
[1745625801805,0.210804,94816.0,94815.0,0.3608]
[1745625802012,0.210804,94816.0,94815.0,0.6308]
[1745625803022,0.2398,94829.0,94815.0,0.65182667]
[1745625803321,0.2107591,94837.0,94828.0,0.5715766]
[1745625803618,0.2107573,94837.0,94836.0,0.3608]
[1745625803807,0.2107573,94837.0,94836.0,1.0398]
[1745625804715,0.3009573,94837.0,94836.0,1.0398]
[1745625805614,0.4765573,94837.0,94836.0,0.679]
[1745625814231,0.6517573,94837.0,94836.0,0.679]
[1745625814426,0.3902573,94837.0,94836.0,0.679]
[1745625814610,0.3009573,94837.0,94836.0,0.679]
[1745625814918,0.0013,94841.0,94838.0,0.2107535]
[1745625815125,0.2107507,94840.0,94839.0,0.2571]
[1745625815323,0.2107507,94840.0,94839.0,0.5171]
[1745625815713,0.0013,94841.0,94839.0,0.9361]
[1745625816110,0.0013,94841.0,94839.0,1.1041]
[1745625816315,0.2107507,94840.0,94839.0,1.1041]
[1745625819428,0.0052,94848.0,94839.0,1.1041]
[1745625819429,0.0526788,94856.0,94839.0,1.1567878]
[1745625819616,0.2633939,94856.0,94855.0,0.3608]
[1745625819812,0.2107092,94859.0,94855.0,0.6308]
[1745625820014,0.2107092,94859.0,94856.0,0.2554]
[1745625820218,0.2107092,94859.0,94856.0,0.4954]
[1745625820822,0.2957045,94861.0,94856.0,0.4954]
[1745625821024,0.2107068,94860.0,94856.0,0.4954]
[1745625821323,0.2107068,94860.0,94856.0,0.6634]
[1745625821514,0.085,94859.0,94856.0,0.6634]
[1745625822523,0.2107111,94858.0,94856.0,0.6634]
[1745625822715,0.085,94859.0,94856.0,0.6634]
[1745625822921,0.0013,94871.0,94857.0,0.419]
[1745625823120,0.2106994,94864.0,94863.0,0.3608]
[1745625823319,0.2106994,94864.0,94863.0,1.0598]
[1745625823823,0.4009154,94864.0,94863.0,0.699]
[1745625824014,0.2954994,94864.0,94863.0,0.699]
[1745625825125,0.4634994,94864.0,94863.0,0.699]
[1745625825726,0.5319794,94864.0,94863.0,0.699]
[1745625826226,0.3639794,94864.0,94863.0,0.699]
[1745625827017,0.9964654,94864.0,94863.0,0.699]
[1745625827222,0.9964654,94864.0,94845.0,0.3608]
[1745625827223,0.2107374,94846.0,94845.0,0.3608]
[1745625827422,0.2107507,94841.0,94840.0,0.0526876]
[1745625827627,0.2107507,94841.0,94840.0,0.5134317]
[1745625827923,0.2107453,94843.0,94842.0,0.2634279]
[1745625828131,0.2107453,94843.0,94842.0,0.5434279]
[1745625828328,0.2107453,94843.0,94842.0,0.4907418]
[1745625828531,0.0526836,94848.0,94842.0,0.28]
[1745625828829,0.2107418,94844.0,94843.0,0.1756]
[1745625829022,0.2107418,94844.0,94843.0,0.4256]
[1745625829232,0.2107418,94844.0,94843.0,0.5936]
[1745625832527,0.2107418,94844.0,94843.0,1.0126]
[1745625833136,0.2107418,94844.0,94843.0,0.8446]
[1745625834127,0.2107418,94844.0,94843.0,1.0126]
[1745625836422,0.1439818,94851.0,94843.0,1.0126]
[1745625836725,0.2107418,94844.0,94843.0,1.0126]
[1745625840634,0.2978418,94844.0,94843.0,1.0126]
[1745625844338,0.4723418,94844.0,94843.0,1.0126]
[1745625845238,0.4723418,94844.0,94843.0,0.8446]
[1745625849036,0.3863418,94844.0,94843.0,0.8446]
[1745625850438,0.2978418,94844.0,94843.0,0.8446]
[1745625854236,0.4730418,94844.0,94843.0,0.8446]
[1745625861247,0.4730418,94844.0,94843.0,1.0126]
[1745625862141,0.3859418,94844.0,94843.0,1.0126]
[1745625862348,0.2107418,94844.0,94843.0,1.0126]
[1745625873051,0.3030418,94844.0,94843.0,1.0126]
[1745625873250,0.3030418,94844.0,94843.0,0.8446]
[1745625873654,0.3920418,94844.0,94843.0,0.8446]
[1745625874355,0.5672418,94844.0,94843.0,0.8446]
[1745625877151,0.5672418,94844.0,94843.0,1.0126]
[1745625877558,0.4749418,94844.0,94843.0,1.0126]
[1745625878449,0.3859418,94844.0,94843.0,1.0126]
[1745625881653,0.2107418,94844.0,94843.0,1.0126]
[1745625890959,0.2107418,94844.0,94843.0,1.3734]
[1745625902660,0.1435848,94846.0,94843.0,1.1626582]
[1745625902865,0.2107418,94844.0,94843.0,1.1626582]
[1745625903471,0.210736,94847.0,94843.0,1.1626582]
[1745625903664,0.0526815,94851.0,94843.0,1.1626582]
[1745625903863,0.0526827,94849.0,94843.0,1.1626582]
[1745625904073,0.2107367,94847.0,94843.0,1.1626582]
[1745625904275,0.3857367,94847.0,94843.0,1.1626582]
[1745625904474,0.15,94867.0,94844.0,0.105436]
[1745625904769,0.2106907,94867.0,94866.0,0.3608]
[1745625904975,0.2106907,94867.0,94866.0,0.6208]
[1745625905177,0.210688,94869.0,94866.0,0.7888]
[1745625905371,0.0013,94871.0,94867.0,0.1703]
[1745625905569,0.2119836,94871.0,94867.0,0.4203]
[1745625906377,0.0013,94871.0,94867.0,0.7989897]
[1745625906671,0.2119829,94871.0,94867.0,0.5883]
[1745625907669,0.2119829,94871.0,94867.0,0.59619978]
[1745625908671,0.0526694,94873.0,94867.0,0.59619978]
[1745625909069,0.210684,94871.0,94867.0,0.59619978]
[1745625909779,0.263354,94871.0,94867.0,0.59619978]
[1745625909981,0.2106832,94871.0,94867.0,0.59619978]
[1745625910881,0.0526693,94873.0,94867.0,0.59619978]
[1745625911378,0.2106869,94869.0,94867.0,0.59619978]
[1745625911679,0.2106885,94868.0,94867.0,0.59619978]
[1745625912770,0.3588885,94868.0,94867.0,0.59619978]
[1745625914080,0.3588885,94868.0,94867.0,0.5038]
[1745625914478,0.4643005,94868.0,94867.0,0.837]
[1745625915078,0.5309405,94868.0,94867.0,0.837]
[1745625915278,0.6989405,94868.0,94867.0,0.669]
[1745625920381,0.6323005,94868.0,94867.0,0.669]
[1745625920580,0.6989405,94868.0,94867.0,0.669]
[1745625920783,1.0597405,94868.0,94867.0,0.669]
[1745625921180,0.8917405,94868.0,94867.0,0.669]
[1745625923791,0.8917405,94868.0,94867.0,0.43272727]
[1745625923985,0.8917405,94868.0,94867.0,7e-08]
[1745625923986,1.6687905,94868.0,94867.0,7e-08]
[1745625924290,0.2107307,94849.0,94847.0,0.0842]
[1745625924491,0.6381707,94849.0,94848.0,0.03]
[1745625924884,0.7949707,94849.0,94848.0,0.03]
[1745625927495,0.7949707,94849.0,94848.0,0.1202]
[1745625929188,0.7949707,94849.0,94848.0,0.5392]
[1745625929886,0.7949707,94849.0,94848.0,0.7540169]
[1745625934990,0.9004027,94849.0,94848.0,0.4936329]
[1745625935291,1.0684027,94849.0,94848.0,0.0906382]
[1745625935491,1.0684027,94849.0,94848.0,0.0061793]
[1745625935793,0.2107551,94838.0,94837.0,0.0869]
[1745625935988,0.2107551,94838.0,94837.0,0.7859]
[1745625936193,0.31619911,94838.0,94837.0,0.7859]
[1745625936683,0.39999911,94838.0,94837.0,0.7859]
[1745625939695,0.2773951,94838.0,94837.0,0.7859]
[1745625943193,0.2773951,94838.0,94837.0,0.9539]
[1745625944103,0.2773951,94838.0,94837.0,0.7859]
[1745625945095,0.2107551,94838.0,94837.0,0.7859]
[1745625945298,0.2773551,94838.0,94837.0,0.7859]
[1745625946196,0.2773551,94838.0,94837.0,0.9539]
[1745625948105,0.2773551,94838.0,94837.0,0.7859]
[1745625949314,0.2773551,94838.0,94837.0,0.9539]
[1745625952509,0.2773551,94838.0,94837.0,1.1646573]
[1745625952510,0.0666,94838.0,94837.0,1.1646573]
[1745625953196,0.0666,94838.0,94837.0,0.9539]
[1745625953401,0.2773551,94838.0,94837.0,0.9539]
[1745625955997,0.0666,94838.0,94837.0,0.9539]
[1745625959213,0.2773551,94838.0,94837.0,0.9539]
[1745625959913,0.0666,94838.0,94837.0,0.9539]
[1745625960107,0.0666,94838.0,94837.0,1.3147]
[1745625960314,0.0666,94838.0,94837.0,1.4096]
[1745625961911,0.0666,94838.0,94837.0,1.6203573]
[1745625965709,0.2773551,94838.0,94837.0,1.4096]
[1745625966820,0.2773551,94838.0,94837.0,1.6203573]
[1745625966821,0.0666,94838.0,94837.0,1.6203573]
[1745625971111,0.1548,94838.0,94837.0,1.6203573]
[1745625976126,0.2107503,94841.0,94839.0,0.2107527]
[1745625976421,0.2107503,94841.0,94840.0,0.2675]
[1745625976623,0.2107458,94843.0,94840.0,0.73825]
[1745625976926,0.2107485,94841.0,94840.0,0.73825]
[1745625977221,0.2107485,94841.0,94840.0,0.90625]
[1745625977419,0.06616,94846.0,94840.0,0.6955]
[1745625977811,0.1188444,94846.0,94842.0,0.2107462]
[1745625978015,0.2107418,94844.0,94843.0,0.176]
[1745625978211,0.1715292,94846.0,94845.0,0.2107396]
[1745625978212,0.06616,94846.0,94845.0,0.2107396]